fUST/lending_fUST_20240627
["ID","MTS","AMOUNT","RATE_DAILY","PERIOD"]
[330459220,1719433848094,-597.87737426,0.00026635,2]
[330459221,1719433848103,-288.40019077,0.00026635,2]
[330459223,1719433848113,-154.83742071,0.00026635,2]
[330459225,1719433848122,-307.0929016,0.00026638,2]
[330459226,1719433848132,-3000.0,0.0002664,2]
[330459227,1719433848142,-3000.0,0.0002665,2]
[330459228,1719433848152,-3000.0,0.0002666,2]
[330459229,1719433848162,-3000.0,0.0002667,2]
[330459230,1719433848171,-3000.0,0.0002668,2]
[330459231,1719433848180,-3000.0,0.0002669,2]
[330459232,1719433848190,-9611.57726267,0.00026699,2]
[330459233,1719433848199,-3000.0,0.000267,2]
[330459234,1719433848208,-3000.0,0.0002671,2]
[330459235,1719433848218,-3000.0,0.0002672,2]
[330459236,1719433848227,-3000.0,0.0002673,2]
[330459237,1719433848237,-3000.0,0.0002674,2]
[330459238,1719433848245,-3000.0,0.0002675,2]
[330459239,1719433848254,-3011.70546995,0.00026759,2]
[330459240,1719433848263,-3000.0,0.0002676,2]
[330459241,1719433848272,-3000.0,0.0002677,2]
[330459242,1719433848281,-3000.0,0.0002678,2]
[330459243,1719433848291,-3000.0,0.0002679,2]
[330459244,1719433848301,-300.0,0.000268,2]
[330459245,1719433848310,-3000.0,0.000268,2]
[330459246,1719433848319,-811.14465118,0.00026809,7]
[330459247,1719433848328,-3000.0,0.0002681,2]
[330459248,1719433848339,-3000.0,0.0002682,2]
[330459249,1719433848349,-3000.0,0.0002683,2]
[330459250,1719433848358,-318.0694556,0.00026839,2]
[330459251,1719433848367,-242.84775224,0.00026839,2]
[330459252,1719433848376,-3000.0,0.0002684,2]
[330459253,1719433848386,-245.55808295,0.00026843,2]
[330459254,1719433848395,-155.31154211,0.00026843,2]
[330459255,1719433848404,-864.91777476,0.00026843,2]
[330459256,1719433848414,-236.60958914,0.00026843,2]
[330459257,1719433848423,-553.25140067,0.00026844,2]
[330459258,1719433848432,-285.30430484,0.00026844,2]
[330459259,1719433848442,-528.63416526,0.00026844,2]
[330459260,1719433848451,-155.02402872,0.00026844,2]
[330459261,1719433848460,-154.83742071,0.00026844,2]
[330459262,1719433848470,-195.47966853,0.00026844,2]
[330459263,1719433848479,-825.92070736,0.00026844,2]
[330459264,1719433848489,-190.23086137,0.00026845,2]
[330459265,1719433848498,-212.02110912,0.00026845,2]
[330459266,1719433848508,-990.65106447,0.00026845,2]
[330459267,1719433848517,-175.89790425,0.00026845,2]
[330459268,1719433848526,-202.30993732,0.00026845,2]
[330459269,1719433848535,-154.83742071,0.00026845,2]
[330459270,1719433848545,-978.79985306,0.00026845,2]
[330459271,1719433848554,-207.76713087,0.00026845,2]
[330459272,1719433848564,-159.39604936,0.00026845,2]
[330459273,1719433848573,-267.84334631,0.00026845,2]
[330459274,1719433848583,-491.33508365,0.00026845,2]
[330459275,1719433848592,-159.39604936,0.00026845,2]
[330459276,1719433848601,-1313.011853,0.00026846,2]
[330459277,1719433848611,-3000.0,0.0002685,2]
[330459278,1719433848621,-3000.0,0.0002686,2]
[330459279,1719433848630,-3000.0,0.0002687,2]
[330459280,1719433848639,-3000.0,0.0002688,2]
[330459281,1719433848650,-3000.0,0.0002689,2]
[330459282,1719433848659,-3000.0,0.000269,2]
[330459283,1719433848669,-3000.0,0.0002691,2]
[330459284,1719433848678,-3000.0,0.0002692,2]
[330459285,1719433848688,-3000.0,0.0002693,2]
[330459286,1719433848698,-3000.0,0.0002694,2]
[330459287,1719433848707,-3000.0,0.0002695,2]
[330459288,1719433848717,-5945.109785,0.0002696,2]
[330459289,1719433848727,-1000.0,0.00027,2]
[330459290,1719433848737,-442.70785427,0.00027,15]
[330459291,1719433848746,-1004.65951507,0.00027,30]
[330459292,1719433848755,-500.0,0.00027,2]
[330459293,1719433848765,-338.0,0.00027185,2]
[330459294,1719433848776,-391.0,0.00027185,2]
[330459295,1719433848785,-750.0,0.00027195,2]
[330459296,1719433848795,-314.09303438,0.00027271,2]
[330459297,1719433848804,-4196.7856251,0.00027397,2]
[330459298,1719433848814,-154.83742071,0.00027397,2]
[330459299,1719433848823,-225.3948498,0.00027397,2]
[330459300,1719433848833,-362.57197759,0.00027397,2]
[330459301,1719433848842,-154.83742071,0.00027397,2]
[330459302,1719433848852,-482.86577994,0.00027397,2]
[330459303,1719433848861,-335.74445368,0.000274,2]
[330459304,1719433848870,-150.0,0.00027499,2]
[330459305,1719433848879,-43581.5895865,0.000275,2]
[330459306,1719433848889,-1745.21097023,0.000275,30]
[330459307,1719433848898,-500.0,0.000275,2]
[330459308,1719433848908,-300.0,0.000278,2]
[330459309,1719433848918,-1093.15514166,0.000279,2]
[330459310,1719433848931,-29788.56583473,0.0002799,2]
[330459311,1719433848944,-514.30884536,0.00028,2]
[330459312,1719433848953,-12168.30524318,0.00028,30]
[330459313,1719433848963,-500.0,0.00028,2]
[330459314,1719433848972,-150.83408251,0.0002817,2]
[330459315,1719433848984,-197.9087,0.00028221,30]
[330459316,1719433848994,-158.556769,0.00028371,2]
[330459317,1719433849002,-150.0,0.00028499,2]
[330459318,1719433849011,-625.66959773,0.000285,2]
[330459319,1719433849020,-301.66816502,0.00028644,4]
[330459320,1719433849030,-159.0174166,0.00028767,2]
[330459321,1719433849039,-189635.61236874,0.0002877,2]
[330459322,1719433849049,-300.0,0.000288,2]
[330459323,1719433849059,-154.89513761,0.00028847,2]
[330459324,1719433849068,-338.0,0.00028997,2]
[330459325,1719433849077,-391.0,0.00028997,2]
[330459326,1719433849086,-847.88457057,0.00029,2]
[330459327,1719433849096,-603.33633004,0.00029125,7]
[330459328,1719433849105,-150.0,0.00029252,4]
[330459329,1719433849115,-150.0,0.00029499,2]
[330459330,1719433849125,-504.54595909,0.00029607,2]
[330459331,1719433849134,-160.0,0.00029737,10]
[330459332,1719433849144,-300.0,0.000298,2]
[330459333,1719433849154,-161.38626272,0.000298,10]
[330459334,1719433849165,-160.0,0.000298,10]
[330459335,1719433849174,-160.0,0.000298,10]
[330459336,1719433849184,-167.31431729,0.000298,10]
[330459337,1719433849193,-151.94744845,0.00029812,7]
[330459338,1719433849203,-150.0,0.00029861,2]
[330459339,1719433849212,-150.0,0.00029861,2]
[330459340,1719433849222,-283.24768933,0.00029861,2]
[330459341,1719433849232,-18832.24566063,0.00029861,2]
[330459342,1719433849241,-2280.10096391,0.00029861,2]
[330459343,1719433849251,-200.0,0.00029861,2]
[330459344,1719433849261,-202.40100834,0.00029861,2]
[330459345,1719433849270,-62883.24902251,0.00029861,2]
[330459346,1719433849280,-88473.15008929,0.00029861,2]
[330459347,1719433849289,-300.0,0.00029861,2]
[330459348,1719433849299,-786.12109983,0.00029861,2]
[330459349,1719433849309,-509.39892308,0.00029861,2]
[330459350,1719433849318,-288.32238738,0.00029861,2]
[330459351,1719433849328,-4112.90096129,0.00029861,2]
[330459352,1719433849337,-317.43284503,0.00029861,2]
[330459353,1719433849347,-4084.45345294,0.00029861,2]
[330459354,1719433849357,-10003.95503293,0.00029861,2]
[330459355,1719433849366,-2725.63282035,0.00029861,2]
[330459356,1719433849376,-152.93082167,0.00029861,2]
[330459357,1719433849387,-510.93059445,0.00029861,2]
[330459358,1719433849396,-433.36201748,0.00029861,2]
[330459359,1719433849405,-221.36178697,0.00029861,2]
[330459360,1719433849415,-3030.15308774,0.00029861,2]
[330459361,1719433849424,-3614.23324184,0.00029861,2]
[330459362,1719433849434,-1009.49803179,0.00029861,2]
[330459363,1719433849444,-152304.77449306,0.00029861,2]
[330459364,1719433849453,-14460.21383417,0.00029861,2]
[330459365,1719433849464,-13074.00101511,0.00029861,2]
[330459366,1719433849474,-266872.43949711,0.00029861,7]
[330459367,1719433849484,-181.63352021,0.00029861,120]
[330459368,1719433849494,-161.32972698,0.00029861,30]
[330459369,1719433849504,-300.86802144,0.00029861,120]
[330459370,1719433849514,-2004.26311312,0.00029861,120]
[330459371,1719433849524,-608.97166679,0.00029861,120]
[330459372,1719433849534,-897.47900648,0.00029861,120]
[330459373,1719433849544,-891.5,0.00029861,120]
[330459374,1719433849553,-982.54117372,0.00029861,2]
[330459375,1719433849563,-151.94744845,0.00029861,7]
[330459376,1719433849573,-151.94744845,0.00029861,7]
[330459377,1719433849583,-151.94744845,0.00029861,7]
[330459378,1719433849591,-151.94744845,0.00029861,7]
[330459379,1719433849600,-151.94744845,0.00029861,7]
[330459380,1719433849609,-151.94744845,0.00029861,7]
[330459381,1719433849619,-151.94744845,0.00029861,7]
[330459382,1719433849628,-151.94744847,0.00029861,7]
[330459383,1719433849637,-379.67073,0.00029861,30]
[330459384,1719433849647,-1206.67266007,0.00029862,30]
[330459385,1719433849656,-1651.00583811,0.0003,4]
[330459386,1719433849666,-223.9340927,0.0003,4]
[330459387,1719433849676,-470.1595153,0.0003,4]
[330459388,1719433849686,-486.68162219,0.0003,3]
[330459389,1719433849696,-44031.66666402,0.0003,7]
[330459390,1719433849705,-155.46411588,0.0003,4]
[330459391,1719433849715,-1500.0,0.0003,2]
[330459392,1719433849725,-1000.0,0.0003,2]
[330459393,1719433849735,-300.0,0.0003,7]
[330459394,1719433849744,-7741.86804263,0.0003,10]
[330459395,1719433849754,-3643.96536324,0.0003,16]
[330459396,1719433849764,-350.70789883,0.0003,30]
[330459397,1719433849774,-1210.78934384,0.0003,3]
[330459398,1719433849783,-1210.91030182,0.0003,3]
[330459399,1719433849793,-260.0,0.0003,2]
[330459400,1719433849802,-270.06855241,0.0003,2]
[330459401,1719433849811,-200.0,0.00030113,120]
[330459402,1719433849821,-200.0,0.00030467,120]
[330459403,1719433849832,-150.0,0.00030499,2]
[330459404,1719433849841,-205.8284286,0.00030713,2]
[330459405,1719433849851,-300.0,0.000308,3]
[330459406,1719433849860,-338.0,0.0003081,2]
[330459407,1719433849870,-391.0,0.0003081,2]
[330459408,1719433849879,-338.0,0.00031068,2]
[330459409,1719433849889,-391.0,0.00031068,2]
[330459410,1719433849898,-294.488338,0.00031341,2]
[330459411,1719433849908,-150.0,0.00031499,2]
[330459412,1719433849918,-300.0,0.000318,5]
[330459413,1719433849929,-1211.27322414,0.000318,3]
[330459414,1719433849941,-1210.91030182,0.000318,3]
[330459415,1719433849951,-151.94744845,0.00031812,7]
[330459416,1719433849960,-157.688184,0.00031963,120]
[330459417,1719433849971,-165.9,0.00032,120]
[330459418,1719433849981,-232.02037368,0.00032177,4]
[330459419,1719433849990,-338.0,0.00032622,2]
[330459420,1719433849999,-391.0,0.00032622,2]
[330459421,1719433850011,-170.5653016,0.00032808,5]
[330459422,1719433850021,-2780.0,0.00033,60]
[330459423,1719433850032,-260.0,0.00033,2]
[330459424,1719433850041,-260.0,0.00033,2]
[330459425,1719433850051,-750.0,0.00033295,2]
[330459426,1719433850061,-1210.91030182,0.000336,3]
[330459427,1719433850070,-151.94744845,0.00033812,10]
[330459429,1719433850080,-569.37182546,0.00034,2]
[330459431,1719433850089,-10000.0,0.00034,2]
[330459432,1719433850099,-524.04424246,0.00034,5]
[330459434,1719433850108,-552.0,0.00034535,5]
[330459436,1719433850117,-1277.90414025,0.00034728,12]
[330459438,1719433850126,-1000.0,0.000348,3]
[330459440,1719433850136,-1000.0,0.000348,3]
[330459442,1719433850145,-1000.0,0.000348,3]
[330459444,1719433850154,-853.0,0.000348,3]
[330459446,1719433850164,-183.0,0.000348,3]
[330459448,1719433850173,-1000.0,0.000348,3]
[330459450,1719433850183,-27334.2023562,0.000349,2]
[330459452,1719433850192,-27011.6578633,0.00034999,60]
[330459482,1719433850473,-491.64471953,0.00033208,2]
[330459484,1719433850482,-15881.25613788,0.00034999,60]
[330460071,1719434149153,157.688184,0.00027397,120]
[330460080,1719434683195,157.688184,0.00027397,120]
[330460082,1719434943218,-158.556769,0.00014795,2]
[330460083,1719434943248,-506.16487335,0.000163,2]
[330460084,1719434943282,-664.72164235,0.000163,2]
[330460085,1719434943320,-294.33501763,0.000163,2]
[330460112,1719435031808,-158.556769,0.00014795,2]
[330460113,1719435031818,-2790.163231,0.00016399,2]
[330460114,1719435031830,-1002.81537215,0.00016399,2]
[330460115,1719435031841,-1837.28110824,0.00016399,2]
[330460116,1719435031851,-1821.20639829,0.00016399,2]
[330460122,1719435037856,-4002.04173137,0.00016399,2]
[330460123,1719435037868,-27923.63060798,0.00016399,2]
[330460124,1719435037878,-28716.72002361,0.000164,2]
[330460125,1719435037888,-750.0,0.00021096,2]
[330460126,1719435037898,-166.666666,0.00022639,2]
[330460127,1719435037907,-265.039504,0.00023007,2]
[330460128,1719435037917,-166.666666,0.00023257,2]
[330460129,1719435037926,-158.556769,0.00023522,2]
[330460130,1719435037936,-166.666666,0.00023874,2]
[330460132,1719435037946,-166.666666,0.00024491,2]
[330460133,1719435037956,-2580.89461927,0.00024558,2]
[330460134,1719435037965,-380.0,0.00024658,2]
[330460135,1719435037975,-2580.89461924,0.00024694,2]
[330460136,1719435037984,-2580.89461924,0.0002483,2]
[330460137,1719435037994,-2580.89461924,0.00024966,2]
[330460138,1719435038003,-157.07812785,0.00025033,2]
[330460139,1719435038013,-500.0,0.00025033,2]
[330460140,1719435038022,-291.53938869,0.00025033,2]
[330460141,1719435038031,-62481.0831698,0.00025054,2]
[330460142,1719435038040,-62481.0831698,0.00025064,2]
[330460143,1719435038050,-124962.16634,0.00025074,2]
[330460144,1719435038059,-30000.0,0.00025083,2]
[330460145,1719435038069,-6153.27076095,0.00025084,2]
[330460146,1719435038078,-124962.16634,0.00025084,2]
[330460147,1719435038088,-2580.89461924,0.00025102,2]
[330460148,1719435038097,-6703.19527492,0.00025103,2]
[330460149,1719435038109,-744.0,0.00025103,2]
[330460150,1719435038121,-17805.36048,0.00025103,2]
[330460153,1719435040123,-804.88871704,0.00025103,2]
[330460155,1719435040132,-5088.21128296,0.00025104,3]
[330460192,1719435043229,-7431.809033,0.00025104,3]
[330460194,1719435043240,-1070.36170096,0.00025104,3]
[330460197,1719435043251,-2445.13019853,0.00025104,3]
[330460198,1719435043263,-1024.37214939,0.00025104,3]
[330460199,1719435043275,-2910.46408717,0.00025104,3]
[330460200,1719435043287,-2492.5,0.00025104,3]
[330460201,1719435043297,-3081.42166903,0.00025104,3]
[330460202,1719435043313,-5550.34698003,0.00025104,3]
[330460232,1719435047712,-2000.0,0.00024964,2]
[330460233,1719435047721,-5042.96250644,0.00025104,3]
[330460234,1719435047733,-3095.52393131,0.00025104,3]
[330460235,1719435047744,-893.55658,0.00025104,3]
[330460236,1719435047755,-14428.47629082,0.00025104,3]
[330460294,1719436232281,-158.556769,0.00014795,2]
[330460296,1719436232291,-1370.05860631,0.0001618,4]
[330460592,1719436238170,-31.62853904,0.0001618,4]
[330460593,1719436238179,-23664.10953251,0.00016182,2]
[330460594,1719436238189,-2747.76244755,0.00016274,2]
[330460595,1719436238242,-3426.57930139,0.00016274,2]
[330460596,1719436238252,-6159.88492146,0.00016274,2]
[330460597,1719436238264,-3610.48679481,0.00016274,2]
[330460598,1719436238277,-7461.31237479,0.00016274,2]
[330460599,1719436238286,-10940.8566062,0.00016275,2]
[330460600,1719436238299,-178.13247096,0.00016275,2]
[330460601,1719436238308,-882.91797888,0.00016275,2]
[330460602,1719436238318,-197.0122384,0.00019039,2]
[330460603,1719436238327,-178.03605632,0.0001949,2]
[330460604,1719436238337,-215.61294534,0.00019582,2]
[330460606,1719436238346,-2041.31267452,0.00019582,2]
[330460608,1719436238356,-597.87737426,0.00019583,2]
[330460611,1719436238365,-388.11994009,0.00019584,2]
[330460612,1719436238375,-750.0,0.00021096,2]
[330460614,1719436238384,-166.666666,0.00021918,2]
[330460615,1719436238394,-166.666666,0.00022431,2]
[330460616,1719436238404,-431.43442061,0.00022499,2]
[330460617,1719436238413,-1686.41343528,0.00022549,2]
[330460619,1719436238428,-492.92242916,0.0002255,2]
[330460620,1719436238447,-1193.49100612,0.0002255,2]
[330460621,1719436238463,-178.0360563,0.00022552,2]
[330460622,1719436238475,-166.666666,0.00022944,2]
[330460623,1719436238490,-258.80025544,0.00023011,2]
[330460624,1719436238503,-200.09839872,0.00023012,2]
[330460625,1719436238518,-166.666666,0.00023456,2]
[330460626,1719436238533,-166.666666,0.00023969,2]
[330460627,1719436238546,-166.666666,0.00024482,2]
[330460628,1719436238561,-158.556769,0.00024977,2]
[330460629,1719436238576,-179.20122481,0.00024999,2]
[330460630,1719436238590,-292.98056546,0.00025103,2]
[330460631,1719436238602,-192.64043544,0.00025104,2]
[330460632,1719436238615,-362.57197759,0.00025104,2]
[330460633,1719436238630,-4196.7856251,0.00025104,2]
[330460634,1719436238643,-225.3948498,0.00025104,2]
[330460635,1719436238654,-202.96298623,0.00025104,2]
[330460636,1719436238665,-14408.23520817,0.00025104,2]
[330460637,1719436238678,-1876.52392968,0.00025104,2]
[330460638,1719436238691,-154.96125969,0.00025104,2]
[330460639,1719436238704,-154.96125969,0.00025104,2]
[330460640,1719436238717,-154.96125969,0.00025104,2]
[330460641,1719436238731,-154.96125969,0.00025104,2]
[330460642,1719436238751,-1538.4612,0.0002517,10]
[330460643,1719436238766,-525.46798099,0.00025171,2]
[330460644,1719436238780,-339.23116658,0.000256,2]
[330460645,1719436238792,-178.0360563,0.00025614,2]
[330460646,1719436238802,-19671.06955355,0.00025622,3]
[330460670,1719436243401,-168.89279474,0.00019581,2]
[330460671,1719436243410,-31706.57812591,0.00025622,3]
[330460672,1719436243422,-426.67064563,0.00025622,3]
[330460673,1719436243433,-17046.44521968,0.00025622,3]
[330460687,1719436243612,-4332.85092211,0.00025622,3]
[330460714,1719436449485,273.37336231,9.9e-05,2]
[330460715,1719436457904,273.37336231,9.9e-05,2]
[330460716,1719436473887,273.37336231,9.9e-05,2]
[330460717,1719436483336,273.37336231,9.9e-05,2]
[330460718,1719436489537,226.9008053,9.9e-05,2]
[330460719,1719436490004,203.73904152,9.9e-05,2]
[330460720,1719436493034,273.37336231,9.9e-05,2]
[330460721,1719436493596,240.84578239,9.9e-05,2]
[330460722,1719436501556,273.37336231,9.9e-05,2]
[330460723,1719436504667,4691.51383582,9.9e-05,2]
[330460724,1719436510438,273.37336231,9.9e-05,2]
[330460725,1719436516490,16222.50177005,9.9e-05,2]
[330460726,1719436518607,273.37336231,9.9e-05,2]
[330460727,1719436526742,273.37336231,9.9e-05,2]
[330460728,1719436535205,273.37336231,9.9e-05,2]
[330460729,1719436544577,273.37336231,9.9e-05,2]
[330460731,1719436552174,4691.51383582,0.00012,2]
[330460732,1719436552730,273.37336231,9.9e-05,2]
[330460733,1719436561420,273.37336231,9.9e-05,2]
[330460734,1719436567005,5312.11926168,0.00012,2]
[330460735,1719436569268,273.37336231,9.9e-05,2]
[330460737,1719436577900,273.37336231,9.9e-05,2]
[330460739,1719436585805,273.37336231,9.9e-05,2]
[330460740,1719436594558,273.37336231,9.9e-05,2]
[330460741,1719436598938,155.000775,0.00012,2]
[330460742,1719436602675,273.37336231,9.9e-05,2]
[330460743,1719436605176,4691.51383582,0.00012,2]
[330460744,1719436611510,273.37336231,9.9e-05,2]
[330460746,1719436619957,273.37336231,9.9e-05,2]
[330460748,1719436628727,273.37336231,9.9e-05,2]
[330460749,1719436636751,273.37336231,9.9e-05,2]
[330460750,1719436644816,273.37336231,9.9e-05,2]
[330460751,1719436653441,273.37336231,9.9e-05,2]
[330460752,1719436658179,4581.91631222,0.00012,2]
[330460753,1719436662717,273.37336231,9.9e-05,2]
[330460754,1719436670571,273.37336231,9.9e-05,2]
[330460755,1719436678715,273.37336231,9.9e-05,2]
[330460756,1719436686624,273.37336231,9.9e-05,2]
[330460758,1719436695141,273.37336231,9.9e-05,2]
[330460759,1719436703411,273.37336231,9.9e-05,2]
[330460760,1719436711504,273.37336231,9.9e-05,2]
[330460761,1719436720555,273.37336231,9.9e-05,2]
[330460762,1719436729396,273.37336231,9.9e-05,2]
[330460763,1719436737836,273.37336231,9.9e-05,2]
[330460764,1719436747177,273.37336231,9.9e-05,2]
[330460765,1719436755583,273.37336231,9.9e-05,2]
[330460766,1719436763901,273.37336231,9.9e-05,2]
[330460767,1719436772998,273.37336231,9.9e-05,2]
[330460768,1719436773441,933.34700406,0.00012,2]
[330460769,1719436781692,273.37336231,9.9e-05,2]
[330460770,1719436789523,273.37336231,9.9e-05,2]
[330460771,1719436806070,273.37336231,9.9e-05,2]
[330460772,1719436813947,273.37336231,9.9e-05,2]
[330460773,1719436822739,273.37336231,9.9e-05,2]
[330460774,1719436828422,282.08638322,0.00012,2]
[330460780,1719437116583,1079.17662378,0.0001,2]
[330460784,1719437264167,491.58358513,0.00012121,2]
[330460786,1719437280097,528.63416526,0.00012121,2]
[330460787,1719437305159,491.08658217,0.00012121,2]
[330460788,1719437333036,-158.45492,0.00014795,2]
[330460789,1719437333068,-328.39688033,0.00015,2]
[330460791,1719437414471,528.63416526,9.999e-05,2]
[330460849,1719437438775,-619.10238857,0.00015,2]
[330460851,1719437438785,-408.2304684,0.0001569,2]
[330460853,1719437438795,-625.75810605,0.00016256,2]
[330460863,1719437440953,-2483.85943121,0.00016256,2]
[330460864,1719437440968,-2675.2693223,0.00016256,2]
[330460865,1719437440984,-1720.05749951,0.00016256,2]
[330460866,1719437440993,-5156.69232868,0.00016257,2]
[330460867,1719437441002,-4001.88805828,0.00016257,2]
[330460868,1719437441013,-13229.79603278,0.00016257,2]
[330460869,1719437441022,-2825.49865465,0.00016258,2]
[330460870,1719437441031,-23995.27480391,0.00018081,2]
[330460871,1719437441040,-154.83742071,0.0001858,2]
[330460872,1719437441049,-251.787528,0.00019178,2]
[330460873,1719437441058,-22706.30923156,0.0002,2]
[330460874,1719437441068,-113191.20588074,0.0002,2]
[330460875,1719437441079,-65380.2400877,0.0002,2]
[330460876,1719437441090,-187.5,0.00021096,2]
[330460877,1719437441104,-712.5,0.00021096,2]
[330460878,1719437441113,-166.666666,0.00021918,2]
[330460879,1719437441122,-166.666666,0.00022431,2]
[330460880,1719437441131,-876.0,0.00022788,2]
[330460881,1719437441140,-166.666666,0.00022944,2]
[330460882,1719437441149,-500.0,0.00023,2]
[330460883,1719437441158,-1036.02286871,0.00023262,2]
[330460884,1719437441167,-2594.6464544,0.00023263,2]
[330460885,1719437441177,-228.6642487,0.00023361,2]
[330460886,1719437441186,-166.666666,0.00023456,2]
[330460887,1719437441195,-155.000775,0.00023968,2]
[330460888,1719437441204,-166.666666,0.00023969,2]
[330460889,1719437441213,-166.666666,0.00024482,2]
[330460890,1719437441222,-158.45492,0.00024977,2]
[330460891,1719437441231,-193.75,0.00025422,3]
[330460892,1719437441239,-8606.29470226,0.00025442,2]
[330460893,1719437441251,-6554.14325933,0.00025442,2]
[330460894,1719437441260,-43755.9179617,0.00025492,2]
[330460895,1719437441269,-199.83014591,0.00025501,2]
[330460896,1719437441278,-18350.05242708,0.00025502,2]
[330460915,1719437443750,-1987.47513661,0.00025502,2]
[330460946,1719437446969,-150.0,0.00022335,2]
[330460947,1719437446978,-1036.02286871,0.00022999,2]
[330460948,1719437446987,-2210.47713129,0.00025502,3]
[330460949,1719437446999,-54494.20286871,0.00025502,3]
[330460950,1719437447008,-23418.39039801,0.00025502,2]
[330460951,1719437447017,-154.83742071,0.00025511,2]
[330460952,1719437447026,-87511.8359234,0.00025512,2]
[330460953,1719437447035,-394.90145033,0.0002552,2]
[330460954,1719437447044,-1569.01894779,0.0002553,7]
[330460955,1719437447053,-1313.33059803,0.00025531,2]
[330460956,1719437447063,-1914.02350809,0.00025532,2]
[330460957,1719437447072,-1284.76673272,0.00025616,2]
[330460958,1719437447081,-661.12832609,0.00025617,2]
[330460959,1719437447091,-401.65252924,0.00025617,2]
[330460960,1719437447105,-1091.08922655,0.00025618,2]
[330460961,1719437447114,-1282.051,0.00025618,10]
[330460962,1719437447124,-276.15513312,0.0002562,2]
[330460963,1719437447133,-154.83742071,0.00025621,2]
[330460964,1719437447143,-188.90000032,0.00025622,2]
[330460965,1719437447152,-225.3948498,0.00025622,2]
[330460966,1719437447162,-8531.92491085,0.00025622,2]
[330460967,1719437447173,-1073.56522793,0.00025622,2]
[330460968,1719437447185,-3453.60695479,0.00025622,2]
[330460969,1719437447196,-207.76713087,0.00025623,2]
[330460970,1719437447206,-197.0122384,0.00025623,2]
[330460971,1719437447216,-159.99540173,0.00025624,2]
[330460972,1719437447225,-154.83742071,0.00025875,2]
[330460973,1719437447234,-251.787528,0.00026388,2]
[330460974,1719437447245,-150.0,0.000265,2]
[330460975,1719437447254,-878.62139978,0.00027184,2]
[330460976,1719437447264,-28576.49919774,0.00027185,3]
[330460977,1719437563284,238.88,0.0001401,2]
[330460985,1719438345650,668.25105163,9.999e-05,2]
[330460990,1719438571779,302.23978514,0.0001212,2]
[330461036,1719438638848,-158.408238,0.00014795,2]
[330461037,1719438638858,-467.03892745,0.00014999,2]
[330461038,1719438638869,-1101.98002034,0.00014999,2]
[330461039,1719438638878,-1422.49021277,0.00014999,2]
[330461040,1719438638887,-1282.051,0.00015,2]
[330461041,1719438638896,-15488.85195264,0.00016255,2]
[330461042,1719438638905,-394.90145033,0.00016953,2]
[330461043,1719438638914,-394.90145033,0.00016972,2]
[330461044,1719438638923,-7124.2555626,0.00017279,2]
[330461045,1719438638934,-4106.82886566,0.00017279,2]
[330461046,1719438638945,-13658.91557174,0.00017279,2]
[330461047,1719438638954,-1312.69310797,0.00018899,2]
[330461048,1719438638963,-15062.84838107,0.000189,2]
[330461049,1719438638972,-197.0122384,0.00019039,2]
[330461050,1719438638981,-525.46798099,0.00019039,2]
[330461051,1719438638990,-440.38203034,0.00021095,2]
[330461052,1719438639000,-292.98056546,0.00021095,2]
[330461053,1719438639009,-162.5,0.00021096,2]
[330461054,1719438639018,-676.875,0.00021096,2]
[330461055,1719438639028,-1036.02286871,0.00021917,2]
[330461056,1719438639038,-166.666666,0.00021918,2]
[330461057,1719438639047,-878.62139978,0.00022398,2]
[330461058,1719438639056,-166.666666,0.00022431,2]
[330461059,1719438639066,-661.12832609,0.00022942,2]
[330461060,1719438639075,-166.666666,0.00022944,2]
[330461061,1719438639085,-166.666666,0.00023456,2]
[330461062,1719438639095,-166.666666,0.00023969,2]
[330461063,1719438639104,-166.666666,0.00024482,2]
[330461064,1719438639114,-158.408238,0.00025903,2]
[330461065,1719438639123,-188.90000032,0.00027185,2]
[330461066,1719438639133,-8004.57511565,0.00027185,2]
[330461067,1719438639143,-676.875,0.00027195,2]
[330461068,1719438639152,-604.41877024,0.000274,2]
[330461069,1719438639161,-1745.21097023,0.000275,30]
[330461070,1719438639172,-154.83742071,0.00027999,2]